Workbook

Sheet Page 1 - Table 1
C3: CRESCENT REALTY
C5: Alex Galuz
C6: President/ Galuz Group
C7: 23975 Park Sorrento, Suite 110 Calabasas, CA 91302 23975 Park Sorrento, Suite 110 Calabasas, CA 91302
C8: Calabasas, CA 91302
C9: Tel: (310) 466-0888
C10: email: Alex@galuzgroup.com
C11: www.galuzgroup.com
C12: Property Address: | D12: 4300 Tujunga Ave
D13: Sudio City CA 91604
C15: LIST PRICE | D15: 2975000
C16: .
C20: INVESTMENT SUMMARY | I20: INVESTMENT HIGHLIGHT
C22: Down Payment: | D22: =D15*E22 -> 1190000 | E22: 0.4
C23: Year Built | D23: 1963
C24: Zoning | D24: LAR3 | I24: SCHEDULED INCOME | M24: Current | O24: Proforma
C25: Units | D25: 10 | I25: Units | J25: Beds | K25: Baths | L25: Units S.F | M25: Rent Average | N25: Monthly Income | O25: Rent | P25: Monthly Income
C26: Appx. Lot Size: | D26: 8765 | E26: SQ. FT | I26: 4 | J26: 1 | K26: 1 | L26: 800 | M26: 1650 | N26: =M26*I26 -> 6600 | O26: 2200 | P26: =O26*I26 -> 8800
C27: Appx. Bldg NRSF: | D27: 8892 | E27: SQ. FT | I27: 3 | J27: 2 | K27: 1 | L27: 1150 | M27: 2080 | N27: =M27*I27 -> 6240 | O27: 2600 | P27: =O27*I27 -> 7800
C28: Cost per NRSF: | D28: =D15/D27 -> 334.5704004 | I28: 2 | J28: S | K28: 1 | L28: 600 | M28: 1800 | N28: 3600 | O28: 1950 | P28: 3900
C29: Cost per Unit: | D29: =D15/D25 -> 297500 | I29: 1 | J29: 2 | K29: 2 | L29: 1200 | M29: 2565 | N29: 2565 | O29: 2800 | P29: 2800
C30: Expense/ NRSF: | D30: =P52/D27 -> 8.284301366
C31: Expense/ Unit: | D31: =P52/D25 -> 7366.400775 | I31: Total Schedule Rent: | N31: =SUM(N26:N30) -> 19005 | P31: =SUM(P26:P30) -> 23300
D32: Current | E32: Pro Forma | I32: Laundry: | N32: 100 | P32: 200
C33: GRM: | D33: =D15/N35 -> 12.97653319 | E33: =D15/P35 -> 10.54964539 | I33: Other Income: | N33: 0 | P33: 0
C34: CAP: | D34: =E45/D15 -> 0.04998930832 | E34: =J45/D15 -> 0.06718520748 | I34: Monthly Gross Income: | N34: =N31+N32+N33 -> 19105 | P34: =P31+P32+P33 -> 23500
C35: ROI: | D35: =E49/D22 -> 0.04347933507 | E35: =J49/D22 -> 0.08646908297 | I35: Annual Gross Income: | N35: =N34*12 -> 229260 | P35: =P34*12 -> 282000
C39: ANNUAL INCOME | N39: ESTIMATED ANNUAL EXPENSE
E40: Current | J40: Pro Forma | N40: ITEM | P40: AMOUNT
C41: Scheduled Gross Income: | E41: =N35 -> 229260 | J41: =P35 -> 282000 | N41: Taxes: | P41: =D15*0.01245849 -> 37064.00775
C42: Less Vacancy Reserve Rate: | E42: =E41*F42 -> 6877.8 | F42: 0.03 | I42: * | J42: =J41*L42 -> 8460 | L42: 0.03 | N42: Insurance: | P42: 7900
C43: Gross Operating Income: | E43: =E41-E42 -> 222382.2 | F43: =E43/E41 -> 0.97 | J43: =J41-J42 -> 273540 | L43: =J43/J41 -> 0.97 | N43: Utilities: | P43: 9000
C44: Less Expenses: | E44: =P52 -> 73664.00775 | F44: =E44/E41 -> 0.3213120813 | I44: * | J44: =P52 -> 73664.00775 | L44: =J44/J41 -> 0.2612198856 | N44: Maintenance & Repair's: | P44: 5000
C45: Net Operating Income: | E45: =E43-E44 -> 148718.1923 | F45: =E45/E41 -> 0.6486879187 | J45: =J43-J44 -> 199875.9923 | L45: =J45/J41 -> 0.7087801144 | N45: Trash: | P45: 3900
C46: Less Debt Service: | E46: =J54*12 -> 121620.4041 | F46: =E46/E41 -> 0.5304911633 | J46: =J54*12 -> 121620.4041 | L46: =J46/J41 -> 0.4312780287 | N46: Gardener and Pest: | P46: 1800
C47: Pre-Tax Cash Flow: | E47: =E45-E46 -> 27097.78816 | F47: =E47/D53 -> 0.02277125056 | I47: ** | J47: =J45-J46 -> 78255.58816 | L47: =J47/D53 -> 0.06576099846 | N47: Misc/Reserves: | P47: 1000
C48: Plus Principal Reduction: | E48: =PPMT(J53,1,J52,-D54) -> 24642.62058 | F48: =E48/D53 -> 0.02070808452 | J48: =PPMT(J53,1,J52,-D54) -> 24642.62058 | L48: =J48/D53 -> 0.02070808452 | N48: off site Management | P48: 8000
C49: Total Return Before Taxes: | E49: =E47+E48 -> 51740.40874 | F49: =E49/D53 -> 0.04347933507 | I49: ** | J49: =J47+J48 -> 102898.2087 | L49: =J49/D53 -> 0.08646908297
C50: *As a Percent of Scheduled Gross Income ** As a Percent of Down Payment
C51: FINANCING INFORMATION
C52: Price: | D52: =D15 -> 2975000 | F52: Terms: | J52: 30 | K52: Year | N52: TOTAL EXPENSES: | P52: =SUM(P41,P42:P51) -> 73664.00775
C53: Down Payment: | D53: =D22 -> 1190000 | F53: Interest Rate: | J53: 0.055 | N53: Expense / NRSF: | P53: =P52/D27 -> 8.284301366
C54: Loan Amount: | D54: =D52-D53 -> 1785000 | F54: Monthly Payment: | J54: =PMT(J53/12,J52*12,-D54) -> 10135.03367 | N54: Expense / Unit: | P54: =P52/D25 -> 7366.400775
C56: This information has been secured from sources we believe to be reliable, but we make no representation or warranties, expressed or implied as to the accuracy of the information
C57: References to square footage or age are approximate. Buyer must independently verify the information and bears all risks for any accurancies. Expenses are estimates.

Sheet Rent Roll Sample 2 - Table 1
A12: Unit # | B12: Status | D12: Unit Type | E12: Move In | F12: Curret Rent | H12: Market Rent | I12: Notes
A14: 1 | D14: Single | F14: 1800
A15: 2 | D15: 2+1 | F15: 1690
A16: 3 | D16: 2+1 | F16: 2500
A17: 4 | D17: Single | F17: 1800
A18: 5 | D18: 1+1 | F18: 1430
A19: 6 | D19: 2+2 | F19: 2565
A20: 7 | D20: 1+1 | F20: 1648
A21: 8 | D21: 1+1 | F21: 1817
A22: 9 | D22: 2+1 | F22: 2163
A23: 10 | D23: 1+1 | F23: 1725
A24: 11
A25: 12
A26: 13
A27: 14
A28: 15
A29: 16
A30: 17
A31: 18
A32: 19
A33: 20
A34: 21
A35: 22
A36: 23
A37: 24
A38: 25
A39: 26
A40: 27
A41: 28
A42: 29
F48: =SUM(F14:F47) -> 19138

Sheet Sheet1
